bitfinex/quotes_SOLUSD_20240717
["timestamp","ask_amount","ask_price","bid_price","bid_amount"]
[1721237005523,15.74,156.29,156.27,6.399]
[1721237005725,15.74,156.3,156.27,6.399]
[1721237006915,15.74,156.29,156.27,6.399]
[1721237008212,22.6704,156.37,156.27,15.9976]
[1721237008419,15.74,156.33,156.3,6.3979]
[1721237008629,15.74,156.33,156.28,17.35963494]
[1721237008630,15.74,156.34,156.32,6.3971]
[1721237009122,15.74,156.34,156.31,23.67033595]
[1721237009524,15.74,156.34,156.32,1.27925839]
[1721237009699,15.74,156.37,156.32,17.18925839]
[1721237009904,15.74,156.37,156.33,6.3965]
[1721237011000,15.74,156.36,156.33,6.3965]
[1721237011410,15.74,156.36,156.35,6.3959]
[1721237011633,6.3939,156.4,156.35,6.5659]
[1721237011793,15.74,156.39,156.35,6.5659]
[1721237011995,15.74,156.38,156.35,6.5659]
[1721237012204,15.9812,156.44,156.31,0.17]
[1721237012394,22.1331,156.42,156.37,6.3947]
[1721237012612,22.1331,156.42,156.38,1.2787053]
[1721237012926,22.7833,156.45,156.36,6.3954]
[1721237012927,15.74,156.4,156.36,6.3954]
[1721237013098,15.74,156.4,156.37,6.395]
[1721237013802,15.74,156.41,156.38,7.67326435]
[1721237015030,6.3922,156.44,156.39,6.3941]
[1721237015229,15.74,156.42,156.4,1.27859204]
[1721237015699,6.3915,156.46,156.39,15.9847]
[1721237015904,15.74,156.44,156.4,0.17]
[1721237016105,15.74,156.44,156.41,6.3934]
[1721237016307,6.3915,156.46,156.41,6.3934]
[1721237016636,259.2,156.48,156.4,0.34]
[1721237016637,15.74,156.44,156.4,0.34]
[1721237016807,15.74,156.43,156.4,6.5638]
[1721237017000,15.74,156.44,156.4,6.5638]
[1721237017304,22.1322,156.44,156.4,0.17]
[1721237017518,6.3931,156.42,156.38,15.74]
[1721237017832,15.74,156.42,156.38,6.3943]
[1721237018822,15.98,156.45,156.37,0.34]
[1721237019007,15.74,156.4,156.36,37.7475]
[1721237019429,22.1343,156.39,156.35,6.7348]
[1721237019638,15.74,156.37,156.33,15.9917]
[1721237020133,15.74,156.37,156.35,15.9892]
[1721237020335,15.74,156.37,156.36,6.3954]
[1721237020631,15.74,156.41,156.37,15.9873]
[1721237020836,15.74,156.41,156.38,6.3943]
[1721237021343,6.393,156.43,156.39,1.27866784]
[1721237021547,15.74,156.42,156.39,1.27866784]
[1721237021835,15.74,156.42,156.38,6.3943]
[1721237022819,15.74,156.42,156.39,1.2786395]
[1721237023142,6.3922,156.44,156.4,1.27857823]
[1721237023341,15.74,156.43,156.4,1.27857823]
[1721237023538,6.3922,156.44,156.4,1.27857823]
[1721237023539,15.74,156.44,156.4,23.41217823]
[1721237023743,6.3918,156.45,156.41,0.17]
[1721237023941,6.3914,156.46,156.41,1.44836021]
[1721237024247,22.1311,156.47,156.42,22.3029]
[1721237024420,22.1311,156.47,156.43,0.17]
[1721237025148,6.3914,156.46,156.43,0.17]
[1721237026035,6.3914,156.46,156.42,15.91]
[1721237026036,6.3918,156.45,156.41,31.7232]
[1721237026238,6.3918,156.45,156.42,0.17]
[1721237026427,6.3918,156.45,156.41,31.7232]
[1721237026827,6.3918,156.45,156.41,15.74]
[1721237027158,6.3915,156.46,156.42,22.4729]
[1721237027455,22.1311,156.47,156.42,22.4729]
[1721237027624,22.1316,156.46,156.42,16.08]
[1721237027826,265.5906,156.48,156.43,6.3924]
[1721237028037,15.74,156.47,156.44,0.17]
[1721237028239,265.5906,156.48,156.44,6.7321]
[1721237028422,15.74,156.5,156.47,6.391]
[1721237028621,6.389,156.52,156.48,1.27790889]
[1721237028824,15.74,156.51,156.48,1.27790889]
[1721237029057,22.1294,156.51,156.49,1.2778763]
[1721237029356,23.7180739,156.57,156.53,6.3882]
[1721237029565,15.74,156.55,156.5,17.0178737]
[1721237029731,15.74,156.54,156.5,7.6675737]
[1721237029924,17.0787739,156.57,156.49,0.34]
[1721237030121,15.74,156.54,156.5,0.34]
[1721237030321,15.74,156.55,156.5,16.08]
[1721237030953,15.74,156.55,156.51,22.129]
[1721237031823,15.74,156.55,156.51,6.389]
[1721237032020,15.74,156.54,156.5,16.08]
[1721237032252,15.74,156.54,156.5,6.5595]
[1721237032433,15.74,156.54,156.5,6.3895]
[1721237034159,15.74,156.56,156.52,6.3889]
[1721237034453,0.7978739,156.57,156.53,15.74]
[1721237034631,16.5378739,156.57,156.54,7.6652585]
[1721237034955,0.7978739,156.57,156.54,6.3879]
[1721237035130,0.7978739,156.57,156.55,1.27735878]
[1721237035834,0.7978739,156.57,156.55,7.66505878]
[1721237036139,0.7978739,156.57,156.55,1.27735878]
[1721237036961,0.7978739,156.57,156.54,6.388]
[1721237037260,7.1848739,156.57,156.53,16.1407]
[1721237037426,7.1848739,156.57,156.53,0.17]
[1721237037627,0.7978739,156.57,156.53,6.7285]
[1721237037931,0.7978739,156.57,156.54,1.2773757]
[1721237038453,0.7978739,156.57,156.54,6.3878]
[1721237038659,0.7978739,156.57,156.55,6.3876]
[1721237038837,0.7978739,156.57,156.55,7.66493583]
[1721237039336,7.1847739,156.57,156.52,38.8667]
[1721237040326,6.3873,156.56,156.52,32.4779]
[1721237040749,7.1847739,156.57,156.52,38.8668]
[1721237040954,0.7978739,156.57,156.5,6.1935]
[1721237041133,6.388,156.55,156.5,12.5831]
[1721237041337,6.388,156.55,156.5,6.3896]
[1721237042235,45.0,156.54,156.48,22.0408]
[1721237042432,6.3883,156.54,156.48,31.6261]
[1721237042655,45.0,156.56,156.48,38.0166]
[1721237042831,45.7978739,156.57,156.48,38.0166]
[1721237043031,6.3884,156.54,156.49,6.3899]
[1721237043233,6.3877,156.55,156.5,6.3897]
[1721237043475,6.3873,156.56,156.51,6.3892]
[1721237043763,45.7978739,156.57,156.5,22.3633]
[1721237043764,6.3877,156.55,156.5,22.3633]
[1721237044343,0.7978739,156.57,156.52,15.972]
[1721237044545,0.7978739,156.57,156.52,17.24952339]
[1721237045276,0.7978739,156.57,156.54,6.388]
[1721237045563,0.7978739,156.57,156.55,1.27735244]
[1721237045864,0.7978739,156.57,156.54,6.388]
[1721237046051,0.7978739,156.57,156.53,6.3884]
[1721237046283,0.7978739,156.57,156.54,1.27740927]
[1721237046463,0.7978739,156.57,156.55,1.27735305]
[1721237047065,0.7978739,156.57,156.52,15.972]
[1721237047267,7.1847739,156.57,156.53,6.3884]
[1721237047475,6.3875,156.56,156.52,15.972]
[1721237047677,6.3886,156.53,156.49,15.9748]
[1721237047886,6.3881,156.54,156.49,22.3648]
[1721237048285,6.3886,156.53,156.49,22.3648]
[1721237048697,6.3882,156.54,156.49,22.3648]
[1721237048906,0.7978739,156.57,156.5,6.3896]
[1721237049092,0.7978739,156.57,156.51,6.3892]
[1721237049273,0.7978739,156.57,156.49,15.9748]
[1721237049473,6.3884,156.54,156.49,22.3648]
[1721237049784,6.3874,156.56,156.51,6.389]
[1721237049998,45.7978739,156.57,156.52,6.3888]
[1721237050203,52.1848739,156.57,156.52,6.3888]
[1721237050596,6.3873,156.56,156.52,6.3888]
[1721237051123,52.1848739,156.57,156.51,15.9731]
[1721237051416,0.7978739,156.57,156.53,6.3885]
[1721237051620,0.7978739,156.57,156.54,7.66558211]
[1721237051793,0.7978739,156.57,156.55,1.27737529]
[1721237051993,0.7978739,156.57,156.56,6.5573]
[1721237052218,0.7978739,156.57,156.53,15.0469]
[1721237052420,0.7978739,156.57,156.53,21.4351]
[1721237052924,0.7978739,156.57,156.52,22.1475]
[1721237053126,0.7978739,156.57,156.54,15.9696]
[1721237053820,0.7978739,156.57,156.55,6.3874]
[1721237053991,0.7978739,156.57,156.55,7.66465161]
[1721237054192,0.7978739,156.57,156.56,6.3873]
[1721237054394,0.7978739,156.57,156.56,6.7273]
[1721237056214,0.7978739,156.57,156.56,22.7286]
[1721237057798,0.7978739,156.57,156.56,16.3413]
[1721237058316,0.7978739,156.57,156.56,22.7286]
[1721237059114,0.7978739,156.57,156.56,16.0013]
[1721237059317,6.3876,156.56,156.52,21.3369]
[1721237059531,0.7978739,156.57,156.52,21.3369]
[1721237059712,0.7978739,156.57,156.53,22.3587]
[1721237060027,7.1850739,156.57,156.52,27.7257]
[1721237060805,0.7978739,156.57,156.5,15.9738]
[1721237061027,6.3876,156.56,156.51,7.66693195]
[1721237061227,6.3878,156.55,156.51,1.27763195]
[1721237061731,7.1851739,156.57,156.52,1.27768178]
[1721237062118,7.1851739,156.57,156.52,7.66658178]
[1721237062320,6.3878,156.55,156.51,1.27757693]
[1721237062623,6.3878,156.55,156.5,22.3634]
[1721237062817,6.3882,156.54,156.49,6.3901]
[1721237063131,6.3878,156.55,156.5,6.3897]
[1721237063329,6.3883,156.54,156.48,6.3902]
[1721237063512,6.3883,156.54,156.49,6.3901]
[1721237064211,6.3878,156.55,156.49,6.3901]
[1721237064411,45.0,156.54,156.5,6.3897]
[1721237064812,51.3881,156.54,156.49,6.3901]
[1721237065015,6.3885,156.53,156.47,37.9557]
[1721237065218,6.3885,156.53,156.47,44.3465]
[1721237065419,6.3885,156.53,156.47,37.8279]
[1721237065613,51.3882,156.54,156.48,1.27795361]
[1721237065807,51.3882,156.54,156.49,6.3897]
[1721237066837,45.0,156.54,156.49,17.2528105]
[1721237067032,0.7978739,156.57,156.49,17.2528105]
[1721237067033,7.1847739,156.57,156.49,17.2528105]
[1721237067338,7.1847739,156.57,156.52,6.3888]
[1721237067637,0.7978739,156.57,156.53,6.3885]
[1721237067822,7.1848739,156.57,156.52,7.66654097]
[1721237068019,7.1848739,156.57,156.53,6.3885]
[1721237068212,0.7978739,156.57,156.53,6.3885]
[1721237068417,0.7978739,156.57,156.52,6.3888]
[1721237068418,7.1850739,156.57,156.52,6.3888]
[1721237068644,0.7978739,156.57,156.49,13.0169]
[1721237068824,6.3888,156.53,156.48,22.536]
[1721237069026,6.3888,156.53,156.48,22.366]
[1721237069618,6.389,156.52,156.48,15.9758]
[1721237070035,45.0,156.51,156.46,6.3912]
[1721237070550,45.0,156.51,156.43,16.6573]
[1721237070738,6.3905,156.49,156.44,6.3919]
[1721237071040,45.0,156.52,156.45,7.66990565]
[1721237071041,6.3898,156.5,156.45,7.66990565]
[1721237071220,45.0,156.49,156.45,7.66990565]
[1721237071737,45.0,156.49,156.45,6.3917]
[1721237071918,45.0,156.49,156.44,15.9802]
[1721237072334,45.0,156.49,156.45,6.3918]
[1721237072533,45.0,156.49,156.46,6.3913]
[1721237072832,45.0,156.5,156.46,6.3913]
[1721237073442,6.3903,156.49,156.44,22.3721]
[1721237073742,45.0,156.5,156.46,6.3911]
[1721237074036,45.0,156.51,156.46,15.978]
[1721237074422,45.0,156.51,156.47,6.3909]
[1721237075658,51.3893,156.51,156.46,22.3693]
[1721237075820,45.0,156.51,156.46,15.978]
[1721237076025,45.0,156.51,156.47,6.3909]
[1721237076220,45.0,156.51,156.48,6.3903]
[1721237076540,6.3881,156.54,156.49,6.3899]
[1721237076916,15.6556,156.55,156.48,15.9761]
[1721237077249,6.3886,156.53,156.48,22.3666]
[1721237077433,22.0434,156.55,156.5,6.3896]
[1721237077745,15.6556,156.55,156.48,15.9761]
[1721237078040,6.3881,156.54,156.49,6.3901]
[1721237078217,15.6556,156.55,156.49,6.3901]
[1721237078218,22.0435,156.55,156.5,6.3895]
[1721237078414,22.0435,156.55,156.51,6.3893]
[1721237078643,15.6556,156.55,156.51,6.3893]
[1721237078853,15.6556,156.55,156.5,15.9736]
[1721237079151,7.1848739,156.57,156.52,6.3888]
[1721237079335,45.0,156.56,156.52,6.3888]
[1721237079839,51.3874,156.56,156.51,7.66703203]
[1721237080138,45.0,156.56,156.52,6.3888]
[1721237080344,0.7978739,156.57,156.54,6.3878]
[1721237080555,0.7978739,156.57,156.55,6.3875]
[1721237080725,0.7978739,156.57,156.54,22.3578]
[1721237081260,0.7978739,156.57,156.55,6.3876]
[1721237081642,0.7978739,156.57,156.54,15.9698]
[1721237082722,6.3873,156.56,156.51,22.3617]
[1721237083154,6.3878,156.55,156.51,15.9728]
[1721237083461,6.3874,156.56,156.51,22.3621]
[1721237083832,45.0,156.55,156.51,22.362]
[1721237084033,7.1847739,156.57,156.52,6.3888]
[1721237084448,45.0,156.56,156.52,6.3888]
[1721237085264,51.3873,156.56,156.51,22.362]
[1721237086125,51.3873,156.56,156.52,6.3889]
[1721237086369,45.0,156.56,156.52,6.3889]
[1721237087232,45.0,156.56,156.53,6.3884]
[1721237087461,45.0,156.56,156.52,6.3888]
[1721237087757,6.3878,156.55,156.5,6.3896]
[1721237088271,51.3874,156.56,156.51,6.3893]
[1721237088868,45.0,156.56,156.52,6.3888]
[1721237090242,45.0,156.56,156.53,6.3884]
[1721237090450,45.7978739,156.57,156.53,6.3884]
[1721237090949,7.1848739,156.57,156.52,22.3608]
[1721237091128,6.3873,156.56,156.52,22.3608]
[1721237091327,0.7978739,156.57,156.51,6.3893]
[1721237091328,6.3877,156.55,156.51,6.3893]
[1721237091534,6.3883,156.54,156.49,22.3645]
[1721237091755,6.3887,156.53,156.49,15.9747]
[1721237092457,6.3882,156.54,156.49,22.3648]
[1721237092762,45.0,156.53,156.49,22.3648]
[1721237093264,51.3888,156.53,156.48,6.3905]
[1721237094366,45.0,156.53,156.5,6.3897]
[1721237094734,45.0,156.53,156.49,6.39]
[1721237095237,45.0,156.53,156.51,6.3893]
[1721237095455,45.0,156.53,156.5,22.3637]
[1721237095647,45.0,156.54,156.5,22.3637]
[1721237096033,51.3881,156.54,156.5,22.3637]
[1721237096434,45.0,156.54,156.51,6.3891]
[1721237096648,0.7978739,156.57,156.5,15.9741]
[1721237096834,0.7978739,156.57,156.53,6.3885]
[1721237097240,7.1847739,156.57,156.52,22.3608]
[1721237097757,6.3873,156.56,156.52,22.3608]
[1721237097957,0.7978739,156.57,156.53,6.3885]
[1721237098139,0.7978739,156.57,156.54,6.3877]
[1721237098670,0.7978739,156.57,156.53,7.66596396]
[1721237098837,7.1847739,156.57,156.53,6.3884]
[1721237099351,0.7978739,156.57,156.54,6.388]
[1721237099547,0.7978739,156.57,156.53,6.3884]
[1721237099747,7.1847739,156.57,156.52,22.3608]
[1721237100053,51.3874,156.56,156.52,15.972]
[1721237100253,51.3874,156.56,156.51,6.3892]
[1721237100254,6.3878,156.55,156.51,6.3892]
[1721237100441,6.3878,156.55,156.5,6.3897]
[1721237100641,45.0,156.54,156.49,22.3651]
[1721237100868,6.3889,156.52,156.47,6.3907]
[1721237101061,51.3897,156.51,156.46,38.5739]
[1721237101557,45.0,156.51,156.47,6.3909]
[1721237101738,45.0,156.51,156.48,6.3904]
[1721237101937,45.0,156.52,156.49,6.39]
[1721237102153,45.0,156.53,156.49,6.39]
[1721237103148,21.7794,156.56,156.51,6.3892]
[1721237103356,6.3878,156.55,156.5,22.3637]
[1721237104042,6.3874,156.56,156.51,6.3893]
[1721237104266,45.0,156.55,156.51,6.3893]
[1721237104439,51.3878,156.55,156.5,22.3637]
[1721237104958,6.3881,156.54,156.5,22.3637]
[1721237105541,51.3877,156.55,156.5,22.3637]
[1721237105948,45.0,156.55,156.52,6.3888]
[1721237106460,51.3877,156.55,156.5,22.3636]
[1721237107361,6.3873,156.56,156.52,6.3889]
[1721237107543,45.0,156.55,156.5,15.9741]
[1721237108063,45.0,156.55,156.46,48.1619]
[1721237108437,45.0,156.55,156.49,15.975]
[1721237108643,45.0,156.55,156.5,1.27775079]
[1721237109149,45.0,156.55,156.51,6.3891]
[1721237110380,7.1847739,156.57,156.52,6.3889]
[1721237110548,0.7978739,156.57,156.54,6.3879]
[1721237110744,0.7978739,156.57,156.55,1.27750649]
[1721237111065,0.7978739,156.57,156.54,6.3877]
[1721237112276,0.7978739,156.57,156.55,6.3876]
[1721237112571,69.77313159,156.64,156.55,23.63401656]
[1721237112741,45.0,156.63,156.55,23.63401656]
[1721237113654,6.3851,156.62,156.56,7.66455451]
[1721237113856,45.0,156.61,156.56,7.66455451]
[1721237114066,62.409,156.64,156.57,6.3868]
[1721237114272,45.0,156.63,156.55,15.969]
[1721237114454,6.3845,156.63,156.58,6.3862]
[1721237115183,6.3845,156.63,156.59,6.3861]
[1721237115382,19.10601764,156.66,156.59,15.9645]
[1721237115682,289.09525604,156.68,156.59,15.9645]
[1721237115683,6.3836,156.65,156.59,15.9645]
[1721237116175,19.10520363,156.67,156.59,22.3505]
[1721237116176,6.3841,156.64,156.59,22.3505]
[1721237116471,19.10520363,156.67,156.56,16.3078]
[1721237116674,19.10520363,156.67,156.57,1.27716981]
[1721237117058,45.0,156.66,156.57,1.27716981]
[1721237117252,6.3847,156.63,156.58,6.3862]
[1721237117460,45.0,156.62,156.58,6.3862]
[1721237118167,45.0,156.62,156.58,6.3863]
[1721237118861,45.0,156.62,156.59,6.386]
[1721237119078,51.3845,156.63,156.58,22.3519]
[1721237119285,6.3849,156.62,156.58,15.9656]
[1721237119493,45.0,156.61,156.55,15.9688]
[1721237119790,51.3853,156.61,156.56,7.66450824]
[1721237120089,51.3853,156.61,156.56,6.3872]
[1721237120273,6.3857,156.6,156.56,6.3872]
[1721237120475,51.3853,156.61,156.55,15.9688]
[1721237121088,51.3853,156.61,156.56,6.3872]
[1721237121669,43.8853,156.61,156.56,6.3872]
[1721237121870,6.3848,156.63,156.55,15.9688]
[1721237122260,6.385,156.62,156.55,15.9688]
[1721237122799,19.1056966,156.65,156.56,6.3872]
[1721237123002,15.9608,156.64,156.52,31.8962]
[1721237123203,6.3864,156.59,156.54,6.388]
[1721237123381,6.3859,156.6,156.55,6.3876]
[1721237123583,6.3865,156.58,156.54,15.97]
[1721237123887,6.3865,156.58,156.53,6.3882]
[1721237124195,6.387,156.57,156.52,6.3888]
[1721237124383,6.3866,156.58,156.53,6.3885]
[1721237124882,6.3869,156.57,156.52,6.3888]
[1721237125065,6.3869,156.57,156.53,6.3884]
[1721237125272,6.3869,156.57,156.52,6.3888]
[1721237126997,6.3878,156.55,156.5,6.3896]
[1721237128269,6.3881,156.54,156.49,6.3901]
[1721237128593,45.17,156.58,156.49,6.3901]
[1721237128594,6.3878,156.55,156.49,6.3901]
[1721237128797,6.3878,156.55,156.5,6.3896]
[1721237129015,45.17,156.58,156.51,15.9732]
[1721237129184,6.3874,156.56,156.51,22.3624]
[1721237129501,6.387,156.57,156.52,6.3888]
[1721237129696,15.021,156.61,156.51,15.9732]
[1721237129697,12.94358894,156.63,156.57,6.3868]
[1721237129871,12.94358894,156.63,156.51,15.4908]
[1721237129872,6.2888,156.63,156.53,1.27767264]
[1721237130072,6.2888,156.63,156.59,6.3857]
[1721237130281,6.3848,156.62,156.58,6.3863]
[1721237130574,6.3848,156.62,156.57,22.3532]
[1721237131377,6.2888,156.63,156.54,16.1399]
[1721237131597,6.2888,156.63,156.54,15.9699]
[1721237131773,6.2888,156.63,156.51,37.8527]
[1721237131973,6.3871,156.57,156.52,6.3887]
[1721237133404,6.3871,156.57,156.53,6.3885]
[1721237133592,6.3871,156.57,156.51,31.4638]
[1721237133773,6.387,156.57,156.51,31.4638]
[1721237133975,6.387,156.57,156.52,6.3886]
[1721237134573,6.3866,156.58,156.53,6.3885]
[1721237134772,6.3861,156.59,156.53,15.9709]
[1721237134985,51.3865,156.58,156.53,15.9709]
[1721237135203,45.0,156.58,156.53,15.9709]
[1721237135500,51.3866,156.58,156.53,22.3593]
[1721237135813,51.3866,156.58,156.53,15.9709]
[1721237135814,6.3869,156.57,156.53,15.9709]
[1721237136302,6.3869,156.57,156.52,6.3888]
[1721237136672,51.3865,156.58,156.53,7.66600695]
[1721237136876,51.3865,156.58,156.53,6.3884]
[1721237137194,45.0,156.58,156.54,6.388]
[1721237137696,6.3853,156.61,156.56,6.3873]
[1721237137889,6.3853,156.61,156.54,15.9695]
[1721237137890,6.3853,156.61,156.57,6.3868]
[1721237138098,6.3849,156.62,156.57,6.3868]
[1721237138688,6.3857,156.6,156.56,22.3551]
[1721237138993,6.3857,156.6,156.56,15.9678]
[1721237139302,15.9615,156.63,156.53,15.9706]
[1721237139494,6.387,156.57,156.53,22.3591]
[1721237139801,6.3866,156.58,156.53,22.3591]
[1721237140099,6.3866,156.58,156.54,6.388]
[1721237140276,6.3862,156.59,156.54,6.388]
[1721237140477,45.0,156.58,156.54,6.388]
[1721237141795,51.3865,156.58,156.53,22.359]
[1721237142000,6.387,156.57,156.53,22.359]
[1721237144104,6.3861,156.59,156.54,7.66535609]
[1721237144313,6.3861,156.59,156.55,1.27740527]
[1721237144483,6.3861,156.59,156.54,6.3879]
[1721237144688,0.17,156.62,156.53,15.9706]
[1721237144689,6.3866,156.58,156.53,22.359]
[1721237144898,6.3862,156.59,156.54,6.388]
[1721237145095,6.3865,156.58,156.54,6.388]
[1721237146585,6.3865,156.58,156.53,22.359]
[1721237147120,6.3859,156.6,156.53,15.9706]
[1721237147288,45.0,156.59,156.53,15.9706]
[1721237147495,45.0,156.59,156.55,6.3874]
[1721237148033,51.3861,156.59,156.55,6.3874]
[1721237148332,51.3861,156.59,156.54,7.66541753]
[1721237148629,6.3865,156.58,156.54,7.66541753]
[1721237148834,6.3871,156.57,156.53,15.9706]
[1721237148995,6.3876,156.56,156.51,21.8801]
[1721237149424,60.9657,156.59,156.48,6.4205]
[1721237149632,15.9678,156.57,156.48,6.4205]
[1721237149933,15.9678,156.57,156.49,17.25304239]
[1721237149934,6.3878,156.55,156.49,17.25304239]
[1721237150222,45.0,156.54,156.5,6.3894]
[1721237150700,45.0,156.54,156.49,17.25304239]
[1721237150701,31.54,156.58,156.51,6.3892]
[1721237150906,45.0,156.57,156.51,6.3892]
[1721237151231,16.0802,156.59,156.52,6.3889]
[1721237151232,6.3874,156.56,156.52,6.3889]
[1721237151417,6.3874,156.56,156.5,6.3893]
[1721237151995,45.0,156.58,156.52,6.3886]
[1721237152195,45.0,156.58,156.51,15.973]
[1721237152412,6.3865,156.58,156.53,6.3885]
[1721237152609,6.387,156.57,156.52,6.3888]
[1721237153010,6.387,156.57,156.52,7.66636902]
[1721237153214,31.37,156.61,156.53,15.971]
[1721237153505,6.3863,156.59,156.54,6.388]
[1721237153703,31.614,156.63,156.55,6.3876]
[1721237153704,6.3858,156.6,156.55,6.3876]
[1721237153901,15.6522,156.63,156.56,6.3872]
[1721237154227,6.3855,156.61,156.56,6.3872]
[1721237155712,6.3861,156.59,156.55,15.9683]
[1721237156909,6.3867,156.58,156.53,15.5666]
[1721237158136,6.3867,156.58,156.53,21.955]
[1721237159210,6.387,156.57,156.53,21.955]
[1721237159412,6.3866,156.58,156.53,21.955]
[1721237159729,6.3866,156.58,156.54,6.3881]
[1721237160032,6.386,156.6,156.55,6.3875]
[1721237160221,51.3853,156.61,156.55,1.27751977]
[1721237160424,6.3857,156.6,156.56,6.3871]
[1721237161008,31.37,156.64,156.56,15.9676]
[1721237161318,6.3852,156.62,156.57,6.3865]
[1721237161504,31.37,156.64,156.54,6.5431]
[1721237162413,6.3858,156.6,156.56,6.3871]
[1721237162931,47.3305,156.64,156.57,6.3868]
[1721237163624,6.3849,156.62,156.57,6.3868]
[1721237164854,6.3886,156.53,156.49,6.3901]
[1721237165140,15.9674,156.57,156.49,6.3901]
[1721237165339,45.0,156.56,156.49,6.3901]
[1721237165718,85.5042,156.6,156.5,7.66748083]
[1721237165925,45.17,156.59,156.49,6.39]
[1721237166334,6.3886,156.53,156.49,6.39]
[1721237166637,6.389,156.52,156.48,31.8723]
[1721237166841,6.389,156.52,156.48,33.15019744]
[1721237167055,6.389,156.52,156.48,17.17439744]
[1721237167209,6.3894,156.51,156.48,15.8965]
[1721237167937,6.389,156.52,156.48,15.8965]
[1721237168353,15.9707,156.54,156.46,6.3913]
[1721237168638,6.3893,156.52,156.47,1.27799352]
[1721237168836,6.3893,156.52,156.47,7.66889352]
[1721237169346,6.3893,156.52,156.48,6.3905]
[1721237169649,6.3893,156.52,156.45,22.0778]
[1721237169650,53.5752,156.6,156.49,0.34]
[1721237169846,53.5752,156.6,156.49,16.315]
[1721237170025,6.3878,156.55,156.5,6.3896]
[1721237170236,6.3882,156.54,156.49,22.365]
[1721237170435,53.5752,156.6,156.49,15.975]
[1721237171153,6.3878,156.55,156.5,6.3896]
[1721237171323,6.3884,156.54,156.49,22.365]
[1721237171522,6.3884,156.54,156.5,1.27767836]
[1721237171718,6.3884,156.54,156.49,22.3651]
[1721237171925,6.3886,156.53,156.49,15.975]
[1721237172334,6.3886,156.53,156.5,1.27770791]
[1721237172714,6.3882,156.54,156.49,22.3651]
[1721237173329,6.387,156.57,156.52,6.3888]
[1721237173537,37.6106,156.6,156.51,22.3624]
[1721237173753,6.3877,156.55,156.51,15.9731]
[1721237174335,15.9655,156.59,156.48,15.976]
[1721237174533,6.3882,156.54,156.5,6.3897]
[1721237174747,6.3878,156.55,156.51,6.3893]
[1721237174929,6.3869,156.57,156.52,7.66650423]
[1721237175133,6.3866,156.58,156.53,7.66605997]
[1721237175752,6.387,156.57,156.53,7.66605997]
[1721237176049,6.387,156.57,156.53,1.27755997]
[1721237176344,6.387,156.57,156.53,13.72185997]
[1721237176552,15.9629,156.62,156.54,17.24694825]
[1721237176742,47.7099,156.66,156.55,1.27722789]
[1721237176743,15.9599,156.65,156.55,1.27722789]
[1721237176943,35.06444924,156.65,156.55,1.27722789]
[1721237177254,6.3853,156.61,156.56,6.3871]
[1721237177444,6.3853,156.61,156.57,7.66390323]
[1721237177652,6.3853,156.61,156.58,1.27710481]
[1721237177952,15.9599,156.65,156.58,7.66360481]
[1721237178132,6.3847,156.63,156.58,7.66360481]
[1721237178450,6.3847,156.63,156.58,17.24300481]
[1721237178668,6.3847,156.63,156.59,6.386]
[1721237178828,6.3841,156.64,156.59,6.386]
[1721237179029,6.3844,156.63,156.59,6.386]
[1721237180038,6.3842,156.64,156.59,6.386]
[1721237181051,6.3828,156.67,156.62,6.3848]